Workbook

Sheet Title Page
B7: Non-Medical Points of Distribution (PODs) Capability Cost Calculator
B13: A tool for jurisdictional planners to estimate the number of PODs needed by their jurisdiction and to estimate the associated costs.

Sheet User Input
B10: Jurisdictional Input
C13: Jurisdiction Population: | H13: 250000
C14: Additional Population to Include: | H14: 50000
C15: Percent of Population in Need of POD Services: | H15: 0.75
C17: Total Population to Serve with PODs: | H17: =H15*(H14+H13) -> 225000
B22: POD Type Distribution | T22: Do not edit the data in this box
T24: I | U24: II | V24: III
C25: How many days will your PODs be deployed for? | I25: 3 | S25: Percents | T25: =SolverPerI -> 0.06 | U25: =SolverPerII -> 0.04 | V25: =SolverPerIII -> 0.9 | W25: To Minimize
S26: Solver Answers | T26: 3.849567587 | U26: 2.551582371 | V26: 51.52544937 | W26: =IF(H17-W28>0,H17-W28,0) -> 0
C27: How many times per year do you expect to deploy PODs? | I27: 1 | W27: Pop Served | X27: (This gives the "such that")
W28: =20000*T26+10000*U26+5000*V26 -> 360134.4223
C29: How would you like to determine POD Type Distribution - by specifying the approximate percentage of each type to employ, or by entering the specific number of each to employ? | S29: Theoretical Ratios | T29: =T25/U25 -> 1.5 | U29: =U25/V25 -> 0.04444444444
S30: Actual Ratios | T30: =T26/U26 -> 1.508698144 | U30: =U26/V26 -> 0.04952081743
G32: Percent | T32: Rounded Results
T33: =ROUNDUP(T26,0) -> 4 | U33: =ROUNDUP(U26,0) -> 3 | V33: 52
D35: Percentage of… | J35: Number of…
E36: Type I | F36: 0.06 | K36: Type I | L36: =T33 -> 4
E37: Type II | F37: 0.04 | K37: Type II | L37: =U33 -> 3
E38: Type III | F38: 0.9 | K38: Type III | L38: =V33 -> 52
E39: Total | F39: =ROUND(SUM(F36:F38),2) -> 1
D45: Number of… | H45: Population Remaining to be Served
E46: Type I | F46: 5 | I46: =IF(H17-F46*20000-F47*10000-F48*5000>=0,H17-F46*20000-F47*10000-F48*5000,0) -> 0
E47: Type II | F47: 12
E48: Type III | F48: 4
D50: Add teams of your preferred type until the Population Remaining to be Served is 0.
S51: Type I | T51: Type II | U51: Type III
S52: =IF(InputPerNum="Percent",L36,F46) -> 4 | T52: =IF(InputPerNum="Percent",L37,F47) -> 3 | U52: =IF(InputPerNum="Percent",L38,F48) -> 52

Sheet POD Types
B11: POD Module: Loading Points
B16: Loading Point
B30: POD Module
B44: POD Types
I47: Type I POD
G69: Population Served per Day: | K69: 20000 | M69: (approximately 6,700 cars)
G70: Number of POD Modules: | K70: 4
G71: Dimensions: | K71: 500' by 250'
G72: Number of Daytime Personnel: | K72: 78
G73: Number of Nighttime Personnel: | K73: 10
G74: Number of Car Lanes: | K74: 4
I78: Type II POD
L87: Population Served per Day: | P87: 10,000*
L88: Number of POD Modules: | P88: 2
L89: Dimensions: | P89: 300' by 250'
L90: Number of Daytime Personnel: | P90: 34
L91: Number of Nighttime Personnel: | P91: 6
L92: Number of Car Lanes: | P92: 2
O97: *(approximately 3,400 cars)
I105: Type III POD
L111: Population Served per Day: | P111: 5,000*
L112: Number of POD Modules: | P112: 1
L113: Dimensions: | P113: 300' by 150'
L114: Number of Daytime Personnel: | P114: 19
L115: Number of Nighttime Personnel: | P115: 4
L116: Number of Car Lanes: | P116: 1
O120: *(approximately 1,700 cars)

Sheet Type I Needs
C9: Your capability need is | G9: =IF(InputPerNum="Percent",'User Input'!L36,'User Input'!F46) -> 4 | H9: Type I PODs, operating for | L9: =CONCATENATE(SUM('User Input'!I25:J25), " days") -> 3 days
H10: You can adjust costs and quantities below to reflect your actual costs and needs.
J13: Default Quantities | K13: Quantities | L13: Unit Costs | M13: Initial Cost
B15: Loading Point Equipment | J15: =M26 -> 465454 | O15: For more information about a Type I POD…
B17: Forklifts | J17: =$G$9*CostsQuants!J17 -> 12 | K17: =J17 -> 12 | L17: 25000 | M17: =K17*L17 -> 300000
B18: Pallet Jacks | J18: =$G$9*CostsQuants!J18 -> 12 | K18: 12 | L18: 365 | M18: =K18*L18 -> 4380
B19: Power Light Set | J19: =$G$9*CostsQuants!J19 -> 8 | K19: 8 | L19: 11230 | M19: 89840
B20: Toilets | J20: =$G$9*CostsQuants!J20 -> 24 | K20: 24 | L20: 686 | M20: 16464
B21: Tents | J21: =$G$9*CostsQuants!J21 -> 8 | K21: 8 | L21: 595 | M21: 4760
B22: Dumpsters | J22: =$G$9*CostsQuants!J22 -> 16 | K22: 16 | L22: 752 | M22: 12032
B23: Traffic cones | J23: =$G$9*CostsQuants!J23 -> 120 | K23: 120 | L23: 27.15 | M23: 3258
B24: Two way radio | J24: =$G$9*CostsQuants!J24 -> 16 | K24: 16 | L24: 250 | M24: 4000
B25: Pallets | J25: =$G$9*CostsQuants!J25 -> 3072 | K25: 3072 | L25: 10 | M25: 30720
M26: =SUM(M17:M25) -> 465454
B29: POD Kit | J29: =M44 -> 32694.4
B31: 96-gallon trash can | J31: =$G$9*CostsQuants!J31 -> 16 | K31: =J31 -> 16 | L31: 90 | M31: =K31*L31 -> 1440
B32: Work gloves (pairs) | J32: =$G$9*CostsQuants!J32 -> 256 | K32: 256 | L32: 2 | M32: =K32*L32 -> 512
B33: Duct tape | J33: =$G$9*CostsQuants!J33 -> 64 | K33: 64 | L33: 1 | M33: 64
B34: Flashlights | J34: =$G$9*CostsQuants!J34 -> 320 | K34: 320 | L34: 20 | M34: 6400
B35: Batteries | J35: =$G$9*CostsQuants!J35 -> 576 | K35: 576 | L35: 1.25 | M35: 720
B36: Reflective safety vests | J36: =$G$9*CostsQuants!J36 -> 320 | K36: 320 | L36: 30 | M36: 9600
B37: First Aid kit | J37: =$G$9*CostsQuants!J37 -> 16 | K37: 16 | L37: 40 | M37: 640
B38: Traffic cones | J38: =$G$9*CostsQuants!J38 -> 192 | K38: 192 | L38: 27.15 | M38: 5212.8
B39: Hard hats | J39: =$G$9*CostsQuants!J39 -> 256 | K39: 256 | L39: 15.35 | M39: 3929.6
B40: Glow sticks (orange/red) | J40: =$G$9*CostsQuants!J40 -> 480 | K40: 480 | L40: 1 | M40: =K40*L40 -> 480
B41: Back support vest | J41: =$G$9*CostsQuants!J41 -> 128 | K41: 128 | L41: 15 | M41: 1920
B42: Fire extinguisher (5lb) | J42: =$G$9*CostsQuants!J42 -> 16 | K42: 16 | L42: 61 | M42: 976
B43: Signage | J43: =$G$9*CostsQuants!J43 -> 80 | K43: 80 | L43: 10 | M43: 800
M44: =SUM(M31:M43) -> 32694.4
B47: POD Supplies (if these items are donated/provided free of charge, change all prices to $0.00.) | L47: =M59 -> 4440000 | O47: How to add custom supplies
O48: 1) Decide if your custom supply will be provided each day or once total. 2) Add your item description on the appropriate line. 3) In the Custom Quantities cell, indicate the number provided per person. (If the item is provided per household, divide by 3.) 4) The Default Quantities cell will update to reflect the deployment period and suggested capability need. 5) Enter your expected price per unit.
B49: =CostsQuants!A49 -> Water (gallons) - 1 gallon per person daily | J49: =TypeIPODs*Days*CostsQuants!J49 -> 240000 | K49: =J49 -> 240000 | L49: 0.5 | M49: =K49*L49 -> 120000
B50: =CostsQuants!A50 -> Ice (pounds) - 8 lbs per person daily | J50: =TypeIPODs*Days*CostsQuants!J50 -> 1920000 | K50: 1920000 | L50: 0.5 | M50: =K50*L50 -> 960000
B51: =CostsQuants!A51 -> Meals-Ready-to-Eat - 2 per person daily | I51: Custom Quantities | J51: =TypeIPODs*Days*CostsQuants!J51 -> 480000 | K51: 480000 | L51: 2 | M51: 960000
B52: =CostsQuants!A52 -> Tarps (20' x 25') - 1 per household, total | J52: =TypeIPODs*Days*CostsQuants!J52 -> 240000 | K52: 240000 | L52: 10 | M52: 2400000
B53: Custom Item - daily | I53: 0 | J53: =I53*TypeIPODs*Days*20000 -> 0 | K53: =J53 -> 0 | L53: 0 | M53: 0
B54: Custom Item - daily | I54: 0 | J54: =I54*TypeIPODs*Days*20000 -> 0 | K54: 0 | L54: 0 | M54: 0
B55: Custom Item - daily | I55: 0 | J55: =I55*TypeIPODs*Days*20000 -> 0 | K55: 0 | L55: 0 | M55: 0
B56: Custom Item - daily | I56: 0 | J56: =I56*TypeIPODs*Days*20000 -> 0 | K56: 0 | L56: 0 | M56: 0
B57: Custom Item - once | I57: 0 | J57: =I57*TypeIPODs*20000 -> 0 | K57: 0 | L57: 0 | M57: 0
B58: Custom Item - once | I58: 0 | J58: =I58*TypeIPODs*20000 -> 0 | K58: 0 | L58: 0 | M58: 0
M59: =SUM(M49:M58) -> 4440000
B62: Personnel | J62: =M70 -> 363024
I64: Hours Deployed | J64: Default Quantities | K64: Quantities | L64: Backfill Rate | M64: Operating Cost
B65: POD Manager | I65: =12*SUM('User Input'!$I$25:$J$25) -> 36 | J65: =$G$9*CostsQuants!J65 -> 4 | K65: =J65 -> 4 | L65: 52 | M65: =L65*K65*I65 -> 7488
B66: Support Team Leader | I66: =12*SUM('User Input'!$I$25:$J$25) -> 36 | J66: =$G$9*CostsQuants!J66 -> 12 | K66: 12 | L66: 45 | M66: =L66*K66*I66 -> 19440
B67: Fork Lift Operator | I67: =12*SUM('User Input'!$I$25:$J$25) -> 36 | J67: =$G$9*CostsQuants!J67 -> 20 | K67: 20 | L67: 45 | M67: 32400
B68: Loading Point Labor | I68: =12*SUM('User Input'!$I$25:$J$25) -> 36 | J68: =$G$9*CostsQuants!J68 -> 216 | K68: 216 | L68: 37 | M68: 287712
B69: Pallet Jacks Labor | I69: =12*SUM('User Input'!$I$25:$J$25) -> 36 | J69: =$G$9*CostsQuants!J69 -> 12 | K69: 12 | L69: 37 | M69: 15984
M70: =SUM(M65:M69) -> 363024
B73: Training | J73: =M79 -> 71280
I75: Course Hours | J75: Default Quantities | K75: Quantities | L75: Average Backfill Rate | M75: Initial Cost
B76: IS 100 - Introduction to ICS | I76: 3 | J76: =SUM($J$65:$J$69) -> 264 | K76: =SUM($K$65:$K$69) -> 264 | L76: 30 | M76: =L76*K76*I76 -> 23760
B77: IS 200 - ICS for Single Resources and Initial Action Incidents | I77: 3 | J77: 264 | K77: =SUM($K$65:$K$69) -> 264 | L77: 30 | M77: =L77*K77*I77 -> 23760
B78: IS 700 - NIMs | I78: 3 | J78: 264 | K78: 264 | L78: 30 | M78: 23760
M79: =SUM(M76:M78) -> 71280

Sheet Type I Costs
B9: Total Initial Costs for POD Type I | J9: =O19 -> 569428.4
T11: Source Data to be Hidden
K13: =T13 -> Initial Equipment Costs: | O13: =T14 -> 498148.4 | T13: Initial Equipment Costs: | U13: Initial Personnel Costs: | V13: Initial Training Costs:
L14: =T16 -> Loading Point Costs: | O14: =T17 -> 465454 | T14: ='Type I Needs'!M26+'Type I Needs'!M44 -> 498148.4 | U14: 0 | V14: ='Type I Needs'!M79 -> 71280
L15: =U16 -> POD Kit Costs: | O15: =U17 -> 32694.4
L16: POD Supplies Costs: | O16: 0 | T16: Loading Point Costs: | U16: POD Kit Costs: | V16: Initial Training Costs:
K17: =U13 -> Initial Personnel Costs: | O17: =U14 -> 0 | T17: ='Type I Needs'!M26 -> 465454 | U17: ='Type I Needs'!M44 -> 32694.4 | V17: ='Type I Needs'!M79 -> 71280
K18: =V13 -> Initial Training Costs: | O18: =V14 -> 71280
O19: =SUM(O18,O17,O13) -> 569428.4
B32: Total Operational Costs for POD Type I | J32: =O39 -> 4803024
C34: Based on one deployment
K37: Operational POD Supplies Costs: | O37: =T38 -> 4440000 | T37: Operational POD Supplies Costs: | U37: Operational Personnel Costs
K38: Operational Personnel Costs: | O38: =U38 -> 363024 | T38: ='Type I Needs'!M59 -> 4440000 | U38: ='Type I Needs'!M70 -> 363024
O39: =SUM(O37:P38) -> 4803024
B56: Total Annual Costs for POD Type I
U59: Loading Point Costs: | V59: POD Kit Costs: | W59: Operational POD Supplies Costs: | X59: Operational Personnel Costs: | Y59: Annual Training Costs:
K60: Annual Equipment Costs: | O60: =J88 -> 147278.48 | U60: =Q99 -> 140066 | V60: =Q112 -> 7212.48 | W60: =P71*O37 -> 4440000 | X60: =P71*O38 -> 363024 | Y60: =J114 -> 7920
L61: Loading Point Costs: | O61: =U60 -> 140066
L62: POD Kit Costs: | O62: =V60 -> 7212.48
K63: Operational POD Supplies Costs: | O63: =W60 -> 4440000
K64: Operational Personnel Costs: | O64: =X60 -> 363024
K65: Annual Training Costs: | O65: =Y60 -> 7920
O66: =SUM(O60:P65) -> 5105500.96
L71: How many times per year do you expect to deploy PODs? | P71: =Deployed -> 1
L73: This can be changed on the User Input page.
B85: Annualized Cost Summary
B88: Equipment Annualized Costs | J88: =SUM(Q99,Q112) -> 147278.48
G90: Quantity | H90: Unit Cost | I90: Initial Cost | J90: Shelf Life | K90: R-Cost | L90: Energy | M90: Operating | N90: Repair | O90: Upgrade | P90: Annual Costs | Q90: Category Totals
A91: Loading Point | B91: ='Type I Needs'!B17:I17 -> Forklifts | G91: ='Type I Needs'!K17 -> 12 | H91: ='Type I Needs'!L17 -> 25000 | I91: =H91*G91 -> 300000 | J91: 10 | K91: =I91/J91 -> 30000 | L91: =I91*0.1 -> 30000 | M91: =0.05*I91 -> 15000 | N91: =0.05*I91 -> 15000 | O91: 0 | P91: =SUM(K91:O91) -> 90000
B92: ='Type I Needs'!B18:I18 -> Pallet Jacks | G92: ='Type I Needs'!K18 -> 12 | H92: ='Type I Needs'!L18 -> 365 | I92: =H92*G92 -> 4380 | J92: 10 | K92: =I92/J92 -> 438 | L92: =I92*0.1 -> 438 | M92: =0.05*I92 -> 219 | N92: =0.05*I92 -> 219 | O92: 0 | P92: =SUM(K92:O92) -> 1314
B93: ='Type I Needs'!B19:I19 -> Power Light Set | G93: ='Type I Needs'!K19 -> 8 | H93: ='Type I Needs'!L19 -> 11230 | I93: 89840 | J93: 10 | K93: 8984 | L93: 8984 | M93: 4492 | N93: 4492 | O93: 0 | P93: 26952
B94: ='Type I Needs'!B20:I20 -> Toilets | G94: ='Type I Needs'!K20 -> 24 | H94: ='Type I Needs'!L20 -> 686 | I94: 16464 | J94: 10 | K94: 1646.4 | L94: 0 | M94: 0 | N94: 823.2 | O94: 0 | P94: 2469.6
B95: ='Type I Needs'!B21:I21 -> Tents | G95: ='Type I Needs'!K21 -> 8 | H95: ='Type I Needs'!L21 -> 595 | I95: 4760 | J95: 10 | K95: 476 | L95: 0 | M95: 0 | N95: 238 | O95: 0 | P95: 714
B96: ='Type I Needs'!B22:I22 -> Dumpsters | G96: ='Type I Needs'!K22 -> 16 | H96: ='Type I Needs'!L22 -> 752 | I96: 12032 | J96: 10 | K96: 1203.2 | L96: 0 | M96: 0 | N96: 601.6 | O96: 0 | P96: 1804.8
B97: ='Type I Needs'!B23:I23 -> Traffic cones | G97: ='Type I Needs'!K23 -> 120 | H97: ='Type I Needs'!L23 -> 27.15 | I97: 3258 | J97: 5 | K97: 651.6 | L97: 0 | M97: 0 | N97: 0 | O97: 0 | P97: 651.6
B98: ='Type I Needs'!B24:I24 -> Two way radio | G98: ='Type I Needs'!K24 -> 16 | H98: ='Type I Needs'!L24 -> 250 | I98: 4000 | J98: 5 | K98: 800 | L98: 0 | M98: 0 | N98: 0 | O98: 0 | P98: 800
B99: ='Type I Needs'!B25:I25 -> Pallets | G99: ='Type I Needs'!K25 -> 3072 | H99: ='Type I Needs'!L25 -> 10 | I99: 30720 | J99: 2 | K99: 15360 | L99: 0 | M99: 0 | N99: 0 | O99: 0 | P99: 15360 | Q99: =SUM(P91:P99) -> 140066
A100: POD Kit | B100: ='Type I Needs'!B31:I31 -> 96-gallon trash can | G100: ='Type I Needs'!K31 -> 16 | H100: ='Type I Needs'!L31 -> 90 | I100: 1440 | J100: 5 | K100: 288 | L100: 0 | M100: 0 | N100: 0 | O100: 0 | P100: 288
B101: ='Type I Needs'!B32:I32 -> Work gloves (pairs) | G101: ='Type I Needs'!K32 -> 256 | H101: ='Type I Needs'!L32 -> 2 | I101: 512 | J101: 5 | K101: 102.4 | L101: 0 | M101: 0 | N101: 0 | O101: 0 | P101: 102.4
B102: ='Type I Needs'!B33:I33 -> Duct tape | G102: ='Type I Needs'!K33 -> 64 | H102: ='Type I Needs'!L33 -> 1 | I102: 64 | J102: 2 | K102: 32 | L102: 0 | M102: 0 | N102: 0 | O102: 0 | P102: 32
B103: ='Type I Needs'!B34:I34 -> Flashlights | G103: ='Type I Needs'!K34 -> 320 | H103: ='Type I Needs'!L34 -> 20 | I103: 6400 | J103: 5 | K103: 1280 | L103: 0 | M103: 0 | N103: 0 | O103: 0 | P103: 1280
B104: ='Type I Needs'!B35:I35 -> Batteries | G104: ='Type I Needs'!K35 -> 576 | H104: ='Type I Needs'!L35 -> 1.25 | I104: 720 | J104: 1 | K104: 720 | L104: 0 | M104: 0 | N104: 0 | O104: 0 | P104: 720
B105: ='Type I Needs'!B36:I36 -> Reflective safety vests | G105: ='Type I Needs'!K36 -> 320 | H105: ='Type I Needs'!L36 -> 30 | I105: 9600 | J105: 5 | K105: 1920 | L105: 0 | M105: 0 | N105: 0 | O105: 0 | P105: 1920
B106: ='Type I Needs'!B37:I37 -> First Aid kit | G106: ='Type I Needs'!K37 -> 16 | H106: ='Type I Needs'!L37 -> 40 | I106: 640 | J106: 5 | K106: 128 | L106: 0 | M106: 0 | N106: 0 | O106: =0.05*I106 -> 32 | P106: 160
B107: ='Type I Needs'!B38:I38 -> Traffic cones | G107: ='Type I Needs'!K38 -> 192 | H107: ='Type I Needs'!L38 -> 27.15 | I107: 5212.8 | J107: 5 | K107: 1042.56 | L107: 0 | M107: 0 | N107: 0 | O107: 0 | P107: 1042.56
B108: ='Type I Needs'!B39:I39 -> Hard hats | G108: ='Type I Needs'!K39 -> 256 | H108: ='Type I Needs'!L39 -> 15.35 | I108: 3929.6 | J108: 5 | K108: 785.92 | L108: 0 | M108: 0 | N108: 0 | O108: 0 | P108: 785.92
B109: ='Type I Needs'!B40:I40 -> Glow sticks (orange/red) | G109: ='Type I Needs'!K40 -> 480 | H109: ='Type I Needs'!L40 -> 1 | I109: 480 | J109: 2 | K109: 240 | L109: 0 | M109: 0 | N109: 0 | O109: 0 | P109: 240
B110: ='Type I Needs'!B41:I41 -> Back support vest | G110: ='Type I Needs'!K41 -> 128 | H110: ='Type I Needs'!L41 -> 15 | I110: 1920 | J110: 5 | K110: 384 | L110: 0 | M110: 0 | N110: 0 | O110: 0 | P110: 384
B111: ='Type I Needs'!B42:I42 -> Fire extinguisher (5lb) | G111: ='Type I Needs'!K42 -> 16 | H111: ='Type I Needs'!L42 -> 61 | I111: 976 | J111: 10 | K111: 97.6 | L111: 0 | M111: 0 | N111: 0 | O111: 0 | P111: 97.6
B112: ='Type I Needs'!B43:I43 -> Signage | G112: ='Type I Needs'!K43 -> 80 | H112: ='Type I Needs'!L43 -> 10 | I112: 800 | J112: 5 | K112: 160 | L112: 0 | M112: 0 | N112: 0 | O112: 0 | P112: 160 | Q112: =SUM(P100:P112) -> 7212.48
B114: Training Annualized Costs | J114: =SUM(P117:P119) -> 7920
G116: Quantity | H116: Course Hours | I116: Backfill Rate | J116: Initial Cost | K116: Shelf Life | P116: Annual Costs
B117: ='Type I Needs'!B76:H76 -> IS 100 - Introduction to ICS | G117: ='Type I Needs'!K76 -> 264 | H117: ='Type I Needs'!I76 -> 3 | I117: ='Type I Needs'!L76 -> 30 | J117: =I117*H117*G117 -> 23760 | K117: 9 | P117: =J117/K117 -> 2640
B118: ='Type I Needs'!B77:H77 -> IS 200 - ICS for Single Resources and Initial Action Incidents | G118: ='Type I Needs'!K77 -> 264 | H118: ='Type I Needs'!I77 -> 3 | I118: ='Type I Needs'!L77 -> 30 | J118: =I118*H118*G118 -> 23760 | K118: 9 | P118: =J118/K118 -> 2640
B119: ='Type I Needs'!B78:H78 -> IS 700 - NIMs | G119: ='Type I Needs'!K78 -> 264 | H119: ='Type I Needs'!I78 -> 3 | I119: ='Type I Needs'!L78 -> 30 | J119: 23760 | K119: 9 | P119: 2640

Sheet Type II Needs
C9: Your capability need is | G9: =IF(InputPerNum="Percent",'User Input'!L37,'User Input'!F47) -> 3 | H9: Type II PODs, operating for | L9: =CONCATENATE(SUM('User Input'!I25:J25), " days") -> 3 days
H10: You can adjust costs and quantities below to reflect your actual costs and needs.
J13: Default Quantities | K13: Quantities | L13: Unit Costs | M13: Initial Cost
B15: Loading Point Equipment | J15: =M26 -> 214935.75 | O15: For more information about a Type II POD…
B17: Forklifts | J17: =TypeIIPODs*CostsQuants!K17 -> 6 | K17: =J17 -> 6 | L17: 25000 | M17: =K17*L17 -> 150000
B18: Pallet Jacks | J18: =TypeIIPODs*CostsQuants!K18 -> 6 | K18: 6 | L18: 365 | M18: =K18*L18 -> 2190
B19: Power Light Set | J19: =TypeIIPODs*CostsQuants!K19 -> 3 | K19: 3 | L19: 11230 | M19: 33690
B20: Toilets | J20: =TypeIIPODs*CostsQuants!K20 -> 12 | K20: 12 | L20: 686 | M20: 8232
B21: Tents | J21: =TypeIIPODs*CostsQuants!K21 -> 6 | K21: 6 | L21: 595 | M21: 3570
B22: Dumpsters | J22: =TypeIIPODs*CostsQuants!K22 -> 6 | K22: 6 | L22: 752 | M22: 4512
B23: Traffic cones | J23: =TypeIIPODs*CostsQuants!K23 -> 45 | K23: 45 | L23: 27.15 | M23: 1221.75
B24: Two way radio | J24: =TypeIIPODs*CostsQuants!K24 -> 0 | K24: 0 | L24: 250 | M24: 0
B25: Pallets | J25: =TypeIIPODs*CostsQuants!K25 -> 1152 | K25: 1152 | L25: 10 | M25: 11520
M26: =SUM(M17:M25) -> 214935.75
B29: POD Kit | J29: =M44 -> 12260.4
B31: 96-gallon trash can | J31: =TypeIIPODs*CostsQuants!K31 -> 6 | K31: =J31 -> 6 | L31: 90 | M31: =K31*L31 -> 540
B32: Work gloves (pairs) | J32: =TypeIIPODs*CostsQuants!K32 -> 96 | K32: 96 | L32: 2 | M32: =K32*L32 -> 192
B33: Duct tape | J33: =TypeIIPODs*CostsQuants!K33 -> 24 | K33: 24 | L33: 1 | M33: 24
B34: Flashlights | J34: =TypeIIPODs*CostsQuants!K34 -> 120 | K34: 120 | L34: 20 | M34: 2400
B35: Batteries | J35: =TypeIIPODs*CostsQuants!K35 -> 216 | K35: 216 | L35: 1.25 | M35: 270
B36: Reflective safety vests | J36: =TypeIIPODs*CostsQuants!K36 -> 120 | K36: 120 | L36: 30 | M36: 3600
B37: First Aid kit | J37: =TypeIIPODs*CostsQuants!K37 -> 6 | K37: 6 | L37: 40 | M37: 240
B38: Traffic cones | J38: =TypeIIPODs*CostsQuants!K38 -> 72 | K38: 72 | L38: 27.15 | M38: 1954.8
B39: Hard hats | J39: =TypeIIPODs*CostsQuants!K39 -> 96 | K39: 96 | L39: 15.35 | M39: 1473.6
B40: Glow sticks (orange/red) | J40: =TypeIIPODs*CostsQuants!K40 -> 180 | K40: 180 | L40: 1 | M40: =K40*L40 -> 180
B41: Back support vest | J41: =TypeIIPODs*CostsQuants!K41 -> 48 | K41: 48 | L41: 15 | M41: 720
B42: Fire extinguisher (5lb) | J42: =TypeIIPODs*CostsQuants!K42 -> 6 | K42: 6 | L42: 61 | M42: 366
B43: Signage | J43: =TypeIIPODs*CostsQuants!K43 -> 30 | K43: 30 | L43: 10 | M43: 300
M44: =SUM(M31:M43) -> 12260.4
B47: POD Supplies (if these supplies are donated/provided free of charge, change all prices to $0.00.) | L47: =M59 -> 1665000 | O47: How to add custom supplies
O48: 1) Custom supplies can be added on the POD Type I Needs page, and will be filled in on this page automatically.
B49: =CostsQuants!A49 -> Water (gallons) - 1 gallon per person daily | J49: =TypeIIPODs*Days*CostsQuants!K49 -> 90000 | K49: =J49 -> 90000 | L49: 0.5 | M49: =K49*L49 -> 45000
B50: =CostsQuants!A50 -> Ice (pounds) - 8 lbs per person daily | J50: =TypeIIPODs*Days*CostsQuants!K50 -> 720000 | K50: 720000 | L50: 0.5 | M50: =K50*L50 -> 360000
B51: =CostsQuants!A51 -> Meals-Ready-to-Eat - 2 per person daily | I51: Custom Quantities | J51: =TypeIIPODs*Days*CostsQuants!K51 -> 180000 | K51: 180000 | L51: 2 | M51: 360000
B52: =CostsQuants!A52 -> Tarps (20' x 25') - 1 per household, total | J52: =TypeIIPODs*Days*CostsQuants!K52 -> 90000 | K52: 90000 | L52: 10 | M52: 900000
B53: =Custom1 -> Custom Item - daily | I53: ='Type I Needs'!I53 -> 0 | J53: =I53*TypeIIPODs*Days*10000 -> 0 | K53: =J53 -> 0 | L53: ='Type I Needs'!L53 -> 0 | M53: 0
B54: =Custom2 -> Custom Item - daily | I54: ='Type I Needs'!I54 -> 0 | J54: =I54*TypeIIPODs*Days*10000 -> 0 | K54: 0 | L54: ='Type I Needs'!L54 -> 0 | M54: 0
B55: =Custom3 -> Custom Item - daily | I55: ='Type I Needs'!I55 -> 0 | J55: =I55*TypeIIPODs*Days*10000 -> 0 | K55: 0 | L55: ='Type I Needs'!L55 -> 0 | M55: 0
B56: =Custom4 -> Custom Item - daily | I56: ='Type I Needs'!I56 -> 0 | J56: =I56*TypeIIPODs*Days*10000 -> 0 | K56: 0 | L56: ='Type I Needs'!L56 -> 0 | M56: 0
B57: =Custom5 -> Custom Item - once | I57: ='Type I Needs'!I57 -> 0 | J57: =I57*TypeIIPODs*10000 -> 0 | K57: 0 | L57: ='Type I Needs'!L57 -> 0 | M57: 0
B58: =Custom6 -> Custom Item - once | I58: ='Type I Needs'!I58 -> 0 | J58: =I58*TypeIIPODs*10000 -> 0 | K58: 0 | L58: ='Type I Needs'!L58 -> 0 | M58: 0
M59: =SUM(M49:M58) -> 1665000
B62: Personnel | J62: =M70 -> 141048
I64: Hours Deployed | J64: Default Quantities | K64: Quantities | L64: Backfill Rate | M64: Operating Cost
B65: POD Manager | I65: =12*SUM('User Input'!$I$25:$J$25) -> 36 | J65: =TypeIIPODs*CostsQuants!K65 -> 0 | K65: =J65 -> 0 | L65: 52 | M65: =L65*K65*I65 -> 0
B66: Support Team Leader | I66: =12*SUM('User Input'!$I$25:$J$25) -> 36 | J66: =TypeIIPODs*CostsQuants!K66 -> 9 | K66: 9 | L66: 45 | M66: =L66*K66*I66 -> 14580
B67: Fork Lift Operator | I67: =12*SUM('User Input'!$I$25:$J$25) -> 36 | J67: =TypeIIPODs*CostsQuants!K67 -> 9 | K67: 9 | L67: 45 | M67: 14580
B68: Loading Point Labor | I68: =12*SUM('User Input'!$I$25:$J$25) -> 36 | J68: =TypeIIPODs*CostsQuants!K68 -> 81 | K68: 81 | L68: 37 | M68: 107892
B69: Pallet Jacks Labor | I69: =12*SUM('User Input'!$I$25:$J$25) -> 36 | J69: =TypeIIPODs*CostsQuants!K69 -> 3 | K69: 3 | L69: 37 | M69: 3996
M70: =SUM(M65:M69) -> 141048
B73: Training | J73: =M79 -> 27540
I75: Course Hours | J75: Default Quantities | K75: Quantities | L75: Average Backfill Rate | M75: Initial Cost
B76: IS 100 - Introduction to ICS | I76: 3 | J76: =SUM($J$65:$J$69) -> 102 | K76: =J76 -> 102 | L76: 30 | M76: =L76*K76*I76 -> 9180
B77: IS 200 - ICS for Single Resources and Initial Action Incidents | I77: 3 | J77: 102 | K77: 102 | L77: 30 | M77: =L77*K77*I77 -> 9180
B78: IS 700 - NIMs | I78: 3 | J78: 102 | K78: 102 | L78: 30 | M78: 9180
M79: =SUM(M76:M78) -> 27540

Sheet Type II Costs
B9: Total Initial Costs for POD Type II | J9: =O19 -> 254736.15
T11: Source Data to be Hidden
K13: =T13 -> Initial Equipment Costs: | O13: =T14 -> 227196.15 | T13: Initial Equipment Costs: | U13: Initial Personnel Costs: | V13: Initial Training Costs:
L14: =T16 -> Loading Point Costs: | O14: =T17 -> 214935.75 | T14: ='Type II Needs'!M26+'Type II Needs'!M44 -> 227196.15 | U14: 0 | V14: ='Type II Needs'!M79 -> 27540
L15: =U16 -> POD Kit Costs: | O15: =U17 -> 12260.4
L16: POD Supplies Costs: | O16: 0 | T16: Loading Point Costs: | U16: POD Kit Costs: | V16: Initial Training Costs:
K17: =U13 -> Initial Personnel Costs: | O17: =U14 -> 0 | T17: ='Type II Needs'!M26 -> 214935.75 | U17: ='Type II Needs'!M44 -> 12260.4 | V17: ='Type II Needs'!M79 -> 27540
K18: =V13 -> Initial Training Costs: | O18: =V14 -> 27540
O19: =SUM(O18,O17,O13) -> 254736.15
B32: Total Operational Costs for POD Type II | J32: =O39 -> 1806048
C34: Based on one deployment
K37: Operational POD Supplies Costs: | O37: =T38 -> 1665000 | T37: Operational POD Supplies Costs: | U37: Operational Personnel Costs
K38: Operational Personnel Costs: | O38: =U38 -> 141048 | T38: ='Type II Needs'!M59 -> 1665000 | U38: ='Type II Needs'!M70 -> 141048
O39: =SUM(O37:P38) -> 1806048
B56: Total Annual Costs for POD Type II
U59: Loading Point Costs: | V59: POD Kit Costs: | W59: Operational POD Supplies Costs: | X59: Operational Personnel Costs: | Y59: Annual Training Costs:
K60: Annual Equipment Costs: | O60: =J88 -> 66920.13 | U60: =Q99 -> 64215.45 | V60: =Q112 -> 2704.68 | W60: =P71*O37 -> 1665000 | X60: =P71*O38 -> 141048 | Y60: =J114 -> 3060
L61: Loading Point Costs: | O61: =U60 -> 64215.45
L62: POD Kit Costs: | O62: =V60 -> 2704.68
K63: Operational POD Supplies Costs: | O63: =W60 -> 1665000
K64: Operational Personnel Costs: | O64: =X60 -> 141048
K65: Annual Training Costs: | O65: =Y60 -> 3060
O66: =SUM(O60:P65) -> 1942948.26
L71: How many times per year do you expect to deploy PODs? | P71: =Deployed -> 1
L73: This can be changed on the User Input page.
B85: Annualized Cost Summary
B88: Equipment Annualized Costs | J88: =SUM(Q99,Q112) -> 66920.13
G90: Quantity | H90: Unit Cost | I90: Initial Cost | J90: Shelf Life | K90: R-Cost | L90: Energy | M90: Operating | N90: Repair | O90: Upgrade | P90: Annual Costs | Q90: Category Totals
A91: Loading Point | B91: ='Type II Needs'!B17:I17 -> Forklifts | G91: ='Type II Needs'!K17 -> 6 | H91: ='Type II Needs'!L17 -> 25000 | I91: =H91*G91 -> 150000 | J91: 10 | K91: =I91/J91 -> 15000 | L91: =I91*0.1 -> 15000 | M91: =0.05*I91 -> 7500 | N91: =0.05*I91 -> 7500 | O91: 0 | P91: =SUM(K91:O91) -> 45000
B92: ='Type II Needs'!B18:I18 -> Pallet Jacks | G92: ='Type II Needs'!K18 -> 6 | H92: ='Type II Needs'!L18 -> 365 | I92: =H92*G92 -> 2190 | J92: 10 | K92: =I92/J92 -> 219 | L92: =I92*0.1 -> 219 | M92: =0.05*I92 -> 109.5 | N92: =0.05*I92 -> 109.5 | O92: 0 | P92: =SUM(K92:O92) -> 657
B93: ='Type II Needs'!B19:I19 -> Power Light Set | G93: ='Type II Needs'!K19 -> 3 | H93: ='Type II Needs'!L19 -> 11230 | I93: 33690 | J93: 10 | K93: 3369 | L93: 3369 | M93: 1684.5 | N93: 1684.5 | O93: 0 | P93: 10107
B94: ='Type II Needs'!B20:I20 -> Toilets | G94: ='Type II Needs'!K20 -> 12 | H94: ='Type II Needs'!L20 -> 686 | I94: 8232 | J94: 10 | K94: 823.2 | L94: 0 | M94: 0 | N94: 411.6 | O94: 0 | P94: 1234.8
B95: ='Type II Needs'!B21:I21 -> Tents | G95: ='Type II Needs'!K21 -> 6 | H95: ='Type II Needs'!L21 -> 595 | I95: 3570 | J95: 10 | K95: 357 | L95: 0 | M95: 0 | N95: 178.5 | O95: 0 | P95: 535.5
B96: ='Type II Needs'!B22:I22 -> Dumpsters | G96: ='Type II Needs'!K22 -> 6 | H96: ='Type II Needs'!L22 -> 752 | I96: 4512 | J96: 10 | K96: 451.2 | L96: 0 | M96: 0 | N96: 225.6 | O96: 0 | P96: 676.8
B97: ='Type II Needs'!B23:I23 -> Traffic cones | G97: ='Type II Needs'!K23 -> 45 | H97: ='Type II Needs'!L23 -> 27.15 | I97: 1221.75 | J97: 5 | K97: 244.35 | L97: 0 | M97: 0 | N97: 0 | O97: 0 | P97: 244.35
B98: ='Type II Needs'!B24:I24 -> Two way radio | G98: ='Type II Needs'!K24 -> 0 | H98: ='Type II Needs'!L24 -> 250 | I98: 0 | J98: 5 | K98: 0 | L98: 0 | M98: 0 | N98: 0 | O98: 0 | P98: 0
B99: ='Type II Needs'!B25:I25 -> Pallets | G99: ='Type II Needs'!K25 -> 1152 | H99: ='Type II Needs'!L25 -> 10 | I99: 11520 | J99: 2 | K99: 5760 | L99: 0 | M99: 0 | N99: 0 | O99: 0 | P99: 5760 | Q99: =SUM(P91:P99) -> 64215.45
A100: POD Kit | B100: ='Type II Needs'!B31:I31 -> 96-gallon trash can | G100: ='Type II Needs'!K31 -> 6 | H100: ='Type II Needs'!L31 -> 90 | I100: 540 | J100: 5 | K100: 108 | L100: 0 | M100: 0 | N100: 0 | O100: 0 | P100: 108
B101: ='Type II Needs'!B32:I32 -> Work gloves (pairs) | G101: ='Type II Needs'!K32 -> 96 | H101: ='Type II Needs'!L32 -> 2 | I101: 192 | J101: 5 | K101: 38.4 | L101: 0 | M101: 0 | N101: 0 | O101: 0 | P101: 38.4
B102: ='Type II Needs'!B33:I33 -> Duct tape | G102: ='Type II Needs'!K33 -> 24 | H102: ='Type II Needs'!L33 -> 1 | I102: 24 | J102: 2 | K102: 12 | L102: 0 | M102: 0 | N102: 0 | O102: 0 | P102: 12
B103: ='Type II Needs'!B34:I34 -> Flashlights | G103: ='Type II Needs'!K34 -> 120 | H103: ='Type II Needs'!L34 -> 20 | I103: 2400 | J103: 5 | K103: 480 | L103: 0 | M103: 0 | N103: 0 | O103: 0 | P103: 480
B104: ='Type II Needs'!B35:I35 -> Batteries | G104: ='Type II Needs'!K35 -> 216 | H104: ='Type II Needs'!L35 -> 1.25 | I104: 270 | J104: 1 | K104: 270 | L104: 0 | M104: 0 | N104: 0 | O104: 0 | P104: 270
B105: ='Type II Needs'!B36:I36 -> Reflective safety vests | G105: ='Type II Needs'!K36 -> 120 | H105: ='Type II Needs'!L36 -> 30 | I105: 3600 | J105: 5 | K105: 720 | L105: 0 | M105: 0 | N105: 0 | O105: 0 | P105: 720
B106: ='Type II Needs'!B37:I37 -> First Aid kit | G106: ='Type II Needs'!K37 -> 6 | H106: ='Type II Needs'!L37 -> 40 | I106: 240 | J106: 5 | K106: 48 | L106: 0 | M106: 0 | N106: 0 | O106: =0.05*I106 -> 12 | P106: 60
B107: ='Type II Needs'!B38:I38 -> Traffic cones | G107: ='Type II Needs'!K38 -> 72 | H107: ='Type II Needs'!L38 -> 27.15 | I107: 1954.8 | J107: 5 | K107: 390.96 | L107: 0 | M107: 0 | N107: 0 | O107: 0 | P107: 390.96
B108: ='Type II Needs'!B39:I39 -> Hard hats | G108: ='Type II Needs'!K39 -> 96 | H108: ='Type II Needs'!L39 -> 15.35 | I108: 1473.6 | J108: 5 | K108: 294.72 | L108: 0 | M108: 0 | N108: 0 | O108: 0 | P108: 294.72
B109: ='Type II Needs'!B40:I40 -> Glow sticks (orange/red) | G109: ='Type II Needs'!K40 -> 180 | H109: ='Type II Needs'!L40 -> 1 | I109: 180 | J109: 2 | K109: 90 | L109: 0 | M109: 0 | N109: 0 | O109: 0 | P109: 90
B110: ='Type II Needs'!B41:I41 -> Back support vest | G110: ='Type II Needs'!K41 -> 48 | H110: ='Type II Needs'!L41 -> 15 | I110: 720 | J110: 5 | K110: 144 | L110: 0 | M110: 0 | N110: 0 | O110: 0 | P110: 144
B111: ='Type II Needs'!B42:I42 -> Fire extinguisher (5lb) | G111: ='Type II Needs'!K42 -> 6 | H111: ='Type II Needs'!L42 -> 61 | I111: 366 | J111: 10 | K111: 36.6 | L111: 0 | M111: 0 | N111: 0 | O111: 0 | P111: 36.6
B112: ='Type II Needs'!B43:I43 -> Signage | G112: ='Type II Needs'!K43 -> 30 | H112: ='Type II Needs'!L43 -> 10 | I112: 300 | J112: 5 | K112: 60 | L112: 0 | M112: 0 | N112: 0 | O112: 0 | P112: 60 | Q112: =SUM(P100:P112) -> 2704.68
B114: Training Annualized Costs | J114: =SUM(P117:P119) -> 3060
G116: Quantity | H116: Course Hours | I116: Backfill Rate | J116: Initial Cost | K116: Shelf Life | P116: Annual Costs
B117: ='Type II Needs'!B76:H76 -> IS 100 - Introduction to ICS | G117: ='Type II Needs'!K76 -> 102 | H117: ='Type II Needs'!I76 -> 3 | I117: ='Type II Needs'!L76 -> 30 | J117: =I117*H117*G117 -> 9180 | K117: 9 | P117: =J117/K117 -> 1020
B118: ='Type II Needs'!B77:H77 -> IS 200 - ICS for Single Resources and Initial Action Incidents | G118: ='Type II Needs'!K77 -> 102 | H118: ='Type II Needs'!I77 -> 3 | I118: ='Type II Needs'!L77 -> 30 | J118: =I118*H118*G118 -> 9180 | K118: 9 | P118: =J118/K118 -> 1020
B119: ='Type II Needs'!B78:H78 -> IS 700 - NIMs | G119: ='Type II Needs'!K78 -> 102 | H119: ='Type II Needs'!I78 -> 3 | I119: ='Type II Needs'!L78 -> 30 | J119: 9180 | K119: 9 | P119: 1020

Sheet Type III Needs
C9: Your capability need is | G9: =IF(InputPerNum="Percent",'User Input'!L38,'User Input'!F48) -> 52 | H9: Type III PODs, operating for | L9: =CONCATENATE(SUM('User Input'!I25:J25), " days") -> 3 days
H10: You can adjust costs and quantities below to reflect your actual costs and needs.
J13: Default Quantities | K13: Quantities | L13: Unit Costs | M13: Initial Cost
B15: Loading Point Equipment | J15: =M26 -> 2158286 | O15: For more information about a Type III POD…
B17: Forklifts | J17: =TypeIIIPODs*CostsQuants!L17 -> 52 | K17: =J17 -> 52 | L17: 25000 | M17: =K17*L17 -> 1300000
B18: Pallet Jacks | J18: =TypeIIIPODs*CostsQuants!L18 -> 52 | K18: 52 | L18: 365 | M18: =K18*L18 -> 18980
B19: Power Light Set | J19: =TypeIIIPODs*CostsQuants!L19 -> 52 | K19: 52 | L19: 11230 | M19: 583960
B20: Toilets | J20: =TypeIIIPODs*CostsQuants!L20 -> 104 | K20: 104 | L20: 686 | M20: 71344
B21: Tents | J21: =TypeIIIPODs*CostsQuants!L21 -> 52 | K21: 52 | L21: 595 | M21: 30940
B22: Dumpsters | J22: =TypeIIIPODs*CostsQuants!L22 -> 52 | K22: 52 | L22: 752 | M22: 39104
B23: Traffic cones | J23: =TypeIIIPODs*CostsQuants!L23 -> 520 | K23: 520 | L23: 27.15 | M23: 14118
B24: Two way radio | J24: =TypeIIIPODs*CostsQuants!L24 -> 0 | K24: 0 | L24: 250 | M24: 0
B25: Pallets | J25: =TypeIIIPODs*CostsQuants!L25 -> 9984 | K25: 9984 | L25: 10 | M25: 99840
M26: =SUM(M17:M25) -> 2158286
B29: POD Kit | J29: =M44 -> 106256.8
B31: 96-gallon trash can | J31: =TypeIIIPODs*CostsQuants!L31 -> 52 | K31: =J31 -> 52 | L31: 90 | M31: =K31*L31 -> 4680
B32: Work gloves (pairs) | J32: =TypeIIIPODs*CostsQuants!L32 -> 832 | K32: 832 | L32: 2 | M32: =K32*L32 -> 1664
B33: Duct tape | J33: =TypeIIIPODs*CostsQuants!L33 -> 208 | K33: 208 | L33: 1 | M33: 208
B34: Flashlights | J34: =TypeIIIPODs*CostsQuants!L34 -> 1040 | K34: 1040 | L34: 20 | M34: 20800
B35: Batteries | J35: =TypeIIIPODs*CostsQuants!L35 -> 1872 | K35: 1872 | L35: 1.25 | M35: 2340
B36: Reflective safety vests | J36: =TypeIIIPODs*CostsQuants!L36 -> 1040 | K36: 1040 | L36: 30 | M36: 31200
B37: First Aid kit | J37: =TypeIIIPODs*CostsQuants!L37 -> 52 | K37: 52 | L37: 40 | M37: 2080
B38: Traffic cones | J38: =TypeIIIPODs*CostsQuants!L38 -> 624 | K38: 624 | L38: 27.15 | M38: 16941.6
B39: Hard hats | J39: =TypeIIIPODs*CostsQuants!L39 -> 832 | K39: 832 | L39: 15.35 | M39: 12771.2
B40: Glow sticks (orange/red) | J40: =TypeIIIPODs*CostsQuants!L40 -> 1560 | K40: 1560 | L40: 1 | M40: =K40*L40 -> 1560
B41: Back support vest | J41: =TypeIIIPODs*CostsQuants!L41 -> 416 | K41: 416 | L41: 15 | M41: 6240
B42: Fire extinguisher (5lb) | J42: =TypeIIIPODs*CostsQuants!L42 -> 52 | K42: 52 | L42: 61 | M42: 3172
B43: Signage | J43: =TypeIIIPODs*CostsQuants!L43 -> 260 | K43: 260 | L43: 10 | M43: 2600
M44: =SUM(M31:M43) -> 106256.8
B47: POD Supplies (if these supplies are donated/provided free of charge, change all prices to $0.00.) | L47: =M59 -> 14430000 | O47: How to add custom supplies
O48: 1) Custom supplies can be added on the POD Type I Needs page, and will be filled in on this page automatically.
B49: =CostsQuants!A49 -> Water (gallons) - 1 gallon per person daily | J49: =TypeIIIPODs*Days*CostsQuants!L49 -> 780000 | K49: =J49 -> 780000 | L49: 0.5 | M49: =K49*L49 -> 390000
B50: =CostsQuants!A50 -> Ice (pounds) - 8 lbs per person daily | J50: =TypeIIIPODs*Days*CostsQuants!L50 -> 6240000 | K50: 6240000 | L50: 0.5 | M50: =K50*L50 -> 3120000
B51: =CostsQuants!A51 -> Meals-Ready-to-Eat - 2 per person daily | I51: Custom Quantities | J51: =TypeIIIPODs*Days*CostsQuants!L51 -> 1560000 | K51: 1560000 | L51: 2 | M51: 3120000
B52: =CostsQuants!A52 -> Tarps (20' x 25') - 1 per household, total | J52: =TypeIIIPODs*Days*CostsQuants!L52 -> 780000 | K52: 780000 | L52: 10 | M52: 7800000
B53: =Custom1 -> Custom Item - daily | I53: ='Type I Needs'!I53 -> 0 | J53: =I53*TypeIIIPODs*Days*5000 -> 0 | K53: =J53 -> 0 | L53: ='Type I Needs'!L53 -> 0 | M53: 0
B54: =Custom2 -> Custom Item - daily | I54: ='Type I Needs'!I54 -> 0 | J54: =I54*TypeIIIPODs*Days*5000 -> 0 | K54: 0 | L54: ='Type I Needs'!L54 -> 0 | M54: 0
B55: =Custom3 -> Custom Item - daily | I55: ='Type I Needs'!I55 -> 0 | J55: =I55*TypeIIIPODs*Days*5000 -> 0 | K55: 0 | L55: ='Type I Needs'!L55 -> 0 | M55: 0
B56: =Custom4 -> Custom Item - daily | I56: ='Type I Needs'!I56 -> 0 | J56: =I56*TypeIIIPODs*Days*5000 -> 0 | K56: 0 | L56: ='Type I Needs'!L56 -> 0 | M56: 0
B57: =Custom5 -> Custom Item - once | I57: ='Type I Needs'!I57 -> 0 | J57: =I57*TypeIIIPODs*5000 -> 0 | K57: 0 | L57: ='Type I Needs'!L57 -> 0 | M57: 0
B58: =Custom6 -> Custom Item - once | I58: ='Type I Needs'!I58 -> 0 | J58: =I58*TypeIIIPODs*5000 -> 0 | K58: 0 | L58: ='Type I Needs'!L58 -> 0 | M58: 0
M59: =SUM(M49:M58) -> 14430000
B62: Personnel | J62: =M70 -> 1222416
I64: Hours Deployed | J64: Default Quantities | K64: Quantities | L64: Backfill Rate | M64: Operating Cost
B65: POD Manager | I65: =12*SUM('User Input'!$I$25:$J$25) -> 36 | J65: =TypeIIIPODs*CostsQuants!L65 -> 0 | K65: =J65 -> 0 | L65: 52 | M65: =L65*K65*I65 -> 0
B66: Support Team Leader | I66: =12*SUM('User Input'!$I$25:$J$25) -> 36 | J66: =TypeIIIPODs*CostsQuants!L66 -> 52 | K66: 52 | L66: 45 | M66: =L66*K66*I66 -> 84240
B67: Fork Lift Operator | I67: =12*SUM('User Input'!$I$25:$J$25) -> 36 | J67: =TypeIIIPODs*CostsQuants!L67 -> 104 | K67: 104 | L67: 45 | M67: 168480
B68: Loading Point Labor | I68: =12*SUM('User Input'!$I$25:$J$25) -> 36 | J68: =TypeIIIPODs*CostsQuants!L68 -> 676 | K68: 676 | L68: 37 | M68: 900432
B69: Pallet Jacks Labor | I69: =12*SUM('User Input'!$I$25:$J$25) -> 36 | J69: =TypeIIIPODs*CostsQuants!L69 -> 52 | K69: 52 | L69: 37 | M69: 69264
M70: =SUM(M65:M69) -> 1222416
B73: Training | J73: =M79 -> 238680
I75: Course Hours | J75: Default Quantities | K75: Quantities | L75: Average Backfill Rate | M75: Initial Cost
B76: IS 100 - Introduction to ICS | I76: 3 | J76: =SUM($J$65:$J$69) -> 884 | K76: =J76 -> 884 | L76: 30 | M76: =L76*K76*I76 -> 79560
B77: IS 200 - ICS for Single Resources and Initial Action Incidents | I77: 3 | J77: 884 | K77: 884 | L77: 30 | M77: =L77*K77*I77 -> 79560
B78: IS 700 - NIMs | I78: 3 | J78: 884 | K78: 884 | L78: 30 | M78: 79560
M79: =SUM(M76:M78) -> 238680

Sheet Type III Costs
B9: Total Initial Costs for POD Type III | J9: =O19 -> 2503222.8
T11: Source Data to be Hidden
K13: =T13 -> Initial Equipment Costs: | O13: =T14 -> 2264542.8 | T13: Initial Equipment Costs: | U13: Initial Personnel Costs: | V13: Initial Training Costs:
L14: =T16 -> Loading Point Costs: | O14: =T17 -> 2158286 | T14: ='Type III Needs'!M26+'Type III Needs'!M44 -> 2264542.8 | U14: 0 | V14: ='Type III Needs'!M79 -> 238680
L15: =U16 -> POD Kit Costs: | O15: =U17 -> 106256.8
L16: POD Supplies Costs: | O16: 0 | T16: Loading Point Costs: | U16: POD Kit Costs: | V16: Initial Training Costs:
K17: =U13 -> Initial Personnel Costs: | O17: =U14 -> 0 | T17: ='Type III Needs'!M26 -> 2158286 | U17: ='Type III Needs'!M44 -> 106256.8 | V17: ='Type III Needs'!M79 -> 238680
K18: =V13 -> Initial Training Costs: | O18: =V14 -> 238680
O19: =SUM(O18,O17,O13) -> 2503222.8
B32: Total Operational Costs for POD Type III | J32: =O39 -> 15652416
C34: Based on one deployment
K37: Operational POD Supplies Costs: | O37: =T38 -> 14430000 | T37: Operational POD Supplies Costs: | U37: Operational Personnel Costs
K38: Operational Personnel Costs: | O38: =U38 -> 1222416 | T38: ='Type III Needs'!M59 -> 14430000 | U38: ='Type III Needs'!M70 -> 1222416
O39: =SUM(O37:P38) -> 15652416
B56: Total Annual Costs for POD Type III
U59: Loading Point Costs: | V59: POD Kit Costs: | W59: Operational POD Supplies Costs: | X59: Operational Personnel Costs: | Y59: Annual Training Costs:
K60: Annual Equipment Costs: | O60: =J88 -> 668274.36 | U60: =Q99 -> 644833.8 | V60: =Q112 -> 23440.56 | W60: =P71*O37 -> 14430000 | X60: =P71*O38 -> 1222416 | Y60: =J114 -> 26520
L61: Loading Point Costs: | O61: =U60 -> 644833.8
L62: POD Kit Costs: | O62: =V60 -> 23440.56
K63: Operational POD Supplies Costs: | O63: =W60 -> 14430000
K64: Operational Personnel Costs: | O64: =X60 -> 1222416
K65: Annual Training Costs: | O65: =Y60 -> 26520
O66: =SUM(O60:P65) -> 17015484.72
L71: How many times per year do you expect to deploy PODs? | P71: =Deployed -> 1
L73: This can be changed on the User Input page.
B85: Annualized Cost Summary
B88: Equipment Annualized Costs | J88: =SUM(Q99,Q112) -> 668274.36
G90: Quantity | H90: Unit Cost | I90: Initial Cost | J90: Shelf Life | K90: R-Cost | L90: Energy | M90: Operating | N90: Repair | O90: Upgrade | P90: Annual Costs | Q90: Category Totals
A91: Loading Point | B91: ='Type III Needs'!B17:I17 -> Forklifts | G91: ='Type III Needs'!K17 -> 52 | H91: ='Type III Needs'!L17 -> 25000 | I91: =H91*G91 -> 1300000 | J91: 10 | K91: =I91/J91 -> 130000 | L91: =I91*0.1 -> 130000 | M91: =0.05*I91 -> 65000 | N91: =0.05*I91 -> 65000 | O91: 0 | P91: =SUM(K91:O91) -> 390000
B92: ='Type III Needs'!B18:I18 -> Pallet Jacks | G92: ='Type III Needs'!K18 -> 52 | H92: ='Type III Needs'!L18 -> 365 | I92: =H92*G92 -> 18980 | J92: 10 | K92: =I92/J92 -> 1898 | L92: =I92*0.1 -> 1898 | M92: =0.05*I92 -> 949 | N92: =0.05*I92 -> 949 | O92: 0 | P92: =SUM(K92:O92) -> 5694
B93: ='Type III Needs'!B19:I19 -> Power Light Set | G93: ='Type III Needs'!K19 -> 52 | H93: ='Type III Needs'!L19 -> 11230 | I93: 583960 | J93: 10 | K93: 58396 | L93: 58396 | M93: 29198 | N93: 29198 | O93: 0 | P93: 175188
B94: ='Type III Needs'!B20:I20 -> Toilets | G94: ='Type III Needs'!K20 -> 104 | H94: ='Type III Needs'!L20 -> 686 | I94: 71344 | J94: 10 | K94: 7134.4 | L94: 0 | M94: 0 | N94: 3567.2 | O94: 0 | P94: 10701.6
B95: ='Type III Needs'!B21:I21 -> Tents | G95: ='Type III Needs'!K21 -> 52 | H95: ='Type III Needs'!L21 -> 595 | I95: 30940 | J95: 10 | K95: 3094 | L95: 0 | M95: 0 | N95: 1547 | O95: 0 | P95: 4641
B96: ='Type III Needs'!B22:I22 -> Dumpsters | G96: ='Type III Needs'!K22 -> 52 | H96: ='Type III Needs'!L22 -> 752 | I96: 39104 | J96: 10 | K96: 3910.4 | L96: 0 | M96: 0 | N96: 1955.2 | O96: 0 | P96: 5865.6
B97: ='Type III Needs'!B23:I23 -> Traffic cones | G97: ='Type III Needs'!K23 -> 520 | H97: ='Type III Needs'!L23 -> 27.15 | I97: 14118 | J97: 5 | K97: 2823.6 | L97: 0 | M97: 0 | N97: 0 | O97: 0 | P97: 2823.6
B98: ='Type III Needs'!B24:I24 -> Two way radio | G98: ='Type III Needs'!K24 -> 0 | H98: ='Type III Needs'!L24 -> 250 | I98: 0 | J98: 5 | K98: 0 | L98: 0 | M98: 0 | N98: 0 | O98: 0 | P98: 0
B99: ='Type III Needs'!B25:I25 -> Pallets | G99: ='Type III Needs'!K25 -> 9984 | H99: ='Type III Needs'!L25 -> 10 | I99: 99840 | J99: 2 | K99: 49920 | L99: 0 | M99: 0 | N99: 0 | O99: 0 | P99: 49920 | Q99: =SUM(P91:P99) -> 644833.8
A100: POD Kit | B100: ='Type III Needs'!B31:I31 -> 96-gallon trash can | G100: ='Type III Needs'!K31 -> 52 | H100: ='Type III Needs'!L31 -> 90 | I100: 4680 | J100: 5 | K100: 936 | L100: 0 | M100: 0 | N100: 0 | O100: 0 | P100: 936
B101: ='Type III Needs'!B32:I32 -> Work gloves (pairs) | G101: ='Type III Needs'!K32 -> 832 | H101: ='Type III Needs'!L32 -> 2 | I101: 1664 | J101: 5 | K101: 332.8 | L101: 0 | M101: 0 | N101: 0 | O101: 0 | P101: 332.8
B102: ='Type III Needs'!B33:I33 -> Duct tape | G102: ='Type III Needs'!K33 -> 208 | H102: ='Type III Needs'!L33 -> 1 | I102: 208 | J102: 2 | K102: 104 | L102: 0 | M102: 0 | N102: 0 | O102: 0 | P102: 104
B103: ='Type III Needs'!B34:I34 -> Flashlights | G103: ='Type III Needs'!K34 -> 1040 | H103: ='Type III Needs'!L34 -> 20 | I103: 20800 | J103: 5 | K103: 4160 | L103: 0 | M103: 0 | N103: 0 | O103: 0 | P103: 4160
B104: ='Type III Needs'!B35:I35 -> Batteries | G104: ='Type III Needs'!K35 -> 1872 | H104: ='Type III Needs'!L35 -> 1.25 | I104: 2340 | J104: 1 | K104: 2340 | L104: 0 | M104: 0 | N104: 0 | O104: 0 | P104: 2340
B105: ='Type III Needs'!B36:I36 -> Reflective safety vests | G105: ='Type III Needs'!K36 -> 1040 | H105: ='Type III Needs'!L36 -> 30 | I105: 31200 | J105: 5 | K105: 6240 | L105: 0 | M105: 0 | N105: 0 | O105: 0 | P105: 6240
B106: ='Type III Needs'!B37:I37 -> First Aid kit | G106: ='Type III Needs'!K37 -> 52 | H106: ='Type III Needs'!L37 -> 40 | I106: 2080 | J106: 5 | K106: 416 | L106: 0 | M106: 0 | N106: 0 | O106: =0.05*I106 -> 104 | P106: 520
B107: ='Type III Needs'!B38:I38 -> Traffic cones | G107: ='Type III Needs'!K38 -> 624 | H107: ='Type III Needs'!L38 -> 27.15 | I107: 16941.6 | J107: 5 | K107: 3388.32 | L107: 0 | M107: 0 | N107: 0 | O107: 0 | P107: 3388.32
B108: ='Type III Needs'!B39:I39 -> Hard hats | G108: ='Type III Needs'!K39 -> 832 | H108: ='Type III Needs'!L39 -> 15.35 | I108: 12771.2 | J108: 5 | K108: 2554.24 | L108: 0 | M108: 0 | N108: 0 | O108: 0 | P108: 2554.24
B109: ='Type III Needs'!B40:I40 -> Glow sticks (orange/red) | G109: ='Type III Needs'!K40 -> 1560 | H109: ='Type III Needs'!L40 -> 1 | I109: 1560 | J109: 2 | K109: 780 | L109: 0 | M109: 0 | N109: 0 | O109: 0 | P109: 780
B110: ='Type III Needs'!B41:I41 -> Back support vest | G110: ='Type III Needs'!K41 -> 416 | H110: ='Type III Needs'!L41 -> 15 | I110: 6240 | J110: 5 | K110: 1248 | L110: 0 | M110: 0 | N110: 0 | O110: 0 | P110: 1248
B111: ='Type III Needs'!B42:I42 -> Fire extinguisher (5lb) | G111: ='Type III Needs'!K42 -> 52 | H111: ='Type III Needs'!L42 -> 61 | I111: 3172 | J111: 10 | K111: 317.2 | L111: 0 | M111: 0 | N111: 0 | O111: 0 | P111: 317.2
B112: ='Type III Needs'!B43:I43 -> Signage | G112: ='Type III Needs'!K43 -> 260 | H112: ='Type III Needs'!L43 -> 10 | I112: 2600 | J112: 5 | K112: 520 | L112: 0 | M112: 0 | N112: 0 | O112: 0 | P112: 520 | Q112: =SUM(P100:P112) -> 23440.56
B114: Training Annualized Costs | J114: =SUM(P117:P119) -> 26520
G116: Quantity | H116: Course Hours | I116: Backfill Rate | J116: Initial Cost | K116: Shelf Life | P116: Annual Costs
B117: ='Type III Needs'!B76:H76 -> IS 100 - Introduction to ICS | G117: ='Type III Needs'!K76 -> 884 | H117: ='Type III Needs'!I76 -> 3 | I117: ='Type III Needs'!L76 -> 30 | J117: =I117*H117*G117 -> 79560 | K117: 9 | P117: =J117/K117 -> 8840
B118: ='Type III Needs'!B77:H77 -> IS 200 - ICS for Single Resources and Initial Action Incidents | G118: ='Type III Needs'!K77 -> 884 | H118: ='Type III Needs'!I77 -> 3 | I118: ='Type III Needs'!L77 -> 30 | J118: =I118*H118*G118 -> 79560 | K118: 9 | P118: =J118/K118 -> 8840
B119: ='Type III Needs'!B78:H78 -> IS 700 - NIMs | G119: ='Type III Needs'!K78 -> 884 | H119: ='Type III Needs'!I78 -> 3 | I119: ='Type III Needs'!L78 -> 30 | J119: 79560 | K119: 9 | P119: 8840

Sheet Initial Costs
B9: Input Summary
C12: Total population to be served with PODs: | G12: =SUM('User Input'!H17:I17) -> 225000
C14: POD Type Distribution:
E15: Type I | G15: =TypeIPODs -> 4
E16: Type II | G16: =TypeIIPODs -> 3
E17: Type III | G17: =TypeIIIPODs -> 52
B26: Initial Cost Breakdown
J31: Equipment Costs: | M31: =S32 -> 2989887.35 | S31: Equipment Costs: | T31: Training Costs:
J32: Personnel Costs: | M32: 0 | S32: =SUM('Type I Costs'!O13:P13,'Type II Costs'!O13:P13,'Type III Costs'!O13:P13) -> 2989887.35 | T32: =SUM('Type I Costs'!O18:P18,'Type II Costs'!O18:P18,'Type III Costs'!O18:P18) -> 337500
J33: Training Costs: | M33: =T32 -> 337500
M34: =SUM(M31:N33) -> 3327387.35
B48: Operational Cost Breakdown
S52: POD Supplies Costs: | T52: Personnel Costs:
J53: POD Supplies Costs: | M53: =S53 -> 20535000 | S53: =SUM('Type I Costs'!O37:P37,'Type II Costs'!O37:P37,'Type III Costs'!O37:P37) -> 20535000 | T53: =SUM('Type I Costs'!O38:P38,'Type II Costs'!O38:P38,'Type III Costs'!O38:P38) -> 1726488
J54: Personnel Costs: | M54: =T53 -> 1726488
M55: =SUM(M53:N54) -> 22261488
J59: How many times per year do you expect to deploy PODs? | N59: =Deployed -> 1
J61: This can be changed on the User Input page.
B71: Detailed Cost Breakdown
K74: Quantity | L74: Cost | M74: Initial Cost
C75: Loading Point Equipment (Initial Cost) | K75: =SUM(M77:M85) -> 2838675.75
C77: Forklifts | K77: =SUM('Type I Needs'!J17,'Type II Needs'!J17,'Type III Needs'!J17) -> 70 | L77: ='Type I Needs'!L17 -> 25000 | M77: =L77*K77 -> 1750000
C78: Pallet Jacks | K78: =SUM('Type I Needs'!J18,'Type II Needs'!J18,'Type III Needs'!J18) -> 70 | L78: ='Type I Needs'!L18 -> 365 | M78: =L78*K78 -> 25550
C79: Power Light Set | K79: =SUM('Type I Needs'!J19,'Type II Needs'!J19,'Type III Needs'!J19) -> 63 | L79: ='Type I Needs'!L19 -> 11230 | M79: =L79*K79 -> 707490
C80: Toilets | K80: =SUM('Type I Needs'!J20,'Type II Needs'!J20,'Type III Needs'!J20) -> 140 | L80: ='Type I Needs'!L20 -> 686 | M80: 96040
C81: Tents | K81: =SUM('Type I Needs'!J21,'Type II Needs'!J21,'Type III Needs'!J21) -> 66 | L81: ='Type I Needs'!L21 -> 595 | M81: 39270
C82: Dumpsters | K82: =SUM('Type I Needs'!J22,'Type II Needs'!J22,'Type III Needs'!J22) -> 74 | L82: ='Type I Needs'!L22 -> 752 | M82: 55648
C83: Traffic cones | K83: =SUM('Type I Needs'!J23,'Type II Needs'!J23,'Type III Needs'!J23) -> 685 | L83: ='Type I Needs'!L23 -> 27.15 | M83: 18597.75
C84: Two way radio | K84: =SUM('Type I Needs'!J24,'Type II Needs'!J24,'Type III Needs'!J24) -> 16 | L84: ='Type I Needs'!L24 -> 250 | M84: 4000
C85: Pallets | K85: =SUM('Type I Needs'!J25,'Type II Needs'!J25,'Type III Needs'!J25) -> 14208 | L85: ='Type I Needs'!L25 -> 10 | M85: 142080
C86: POD Kit Equipment (Initial Cost) | K86: =SUM(M88:M100) -> 151211.6
C88: 96-gallon trash can | K88: =SUM('Type I Needs'!J31,'Type II Needs'!J31,'Type III Needs'!J31) -> 74 | L88: ='Type I Needs'!L31 -> 90 | M88: =L88*K88 -> 6660
C89: Work gloves (pairs) | K89: =SUM('Type I Needs'!J32,'Type II Needs'!J32,'Type III Needs'!J32) -> 1184 | L89: ='Type I Needs'!L32 -> 2 | M89: =L89*K89 -> 2368
C90: Duct tape | K90: =SUM('Type I Needs'!J33,'Type II Needs'!J33,'Type III Needs'!J33) -> 296 | L90: ='Type I Needs'!L33 -> 1 | M90: 296
C91: Flashlights | K91: =SUM('Type I Needs'!J34,'Type II Needs'!J34,'Type III Needs'!J34) -> 1480 | L91: ='Type I Needs'!L34 -> 20 | M91: 29600
C92: Batteries | K92: =SUM('Type I Needs'!J35,'Type II Needs'!J35,'Type III Needs'!J35) -> 2664 | L92: ='Type I Needs'!L35 -> 1.25 | M92: 3330
C93: Reflective safety vests | K93: =SUM('Type I Needs'!J36,'Type II Needs'!J36,'Type III Needs'!J36) -> 1480 | L93: ='Type I Needs'!L36 -> 30 | M93: 44400
C94: First Aid kit | K94: =SUM('Type I Needs'!J37,'Type II Needs'!J37,'Type III Needs'!J37) -> 74 | L94: ='Type I Needs'!L37 -> 40 | M94: 2960
C95: Traffic cones | K95: =SUM('Type I Needs'!J38,'Type II Needs'!J38,'Type III Needs'!J38) -> 888 | L95: ='Type I Needs'!L38 -> 27.15 | M95: 24109.2
C96: Hard hats | K96: =SUM('Type I Needs'!J39,'Type II Needs'!J39,'Type III Needs'!J39) -> 1184 | L96: ='Type I Needs'!L39 -> 15.35 | M96: 18174.4
C97: Glow sticks (orange/red) | K97: =SUM('Type I Needs'!J40,'Type II Needs'!J40,'Type III Needs'!J40) -> 2220 | L97: ='Type I Needs'!L40 -> 1 | M97: 2220
C98: Back support vest | K98: =SUM('Type I Needs'!J41,'Type II Needs'!J41,'Type III Needs'!J41) -> 592 | L98: ='Type I Needs'!L41 -> 15 | M98: 8880
C99: Fire extinguisher (5lb) | K99: =SUM('Type I Needs'!J42,'Type II Needs'!J42,'Type III Needs'!J42) -> 74 | L99: ='Type I Needs'!L42 -> 61 | M99: 4514
C100: Signage | K100: =SUM('Type I Needs'!J43,'Type II Needs'!J43,'Type III Needs'!J43) -> 370 | L100: ='Type I Needs'!L43 -> 10 | M100: 3700
C101: Training (Initial Cost) | K101: =SUM(M104:M106) -> 337500
J103: Course Hours | K103: Quantity | L103: Backfill Rate | M103: Initial Cost
C104: IS 100 - Introduction to ICS | J104: ='Type I Needs'!I76 -> 3 | K104: =SUM('Type I Needs'!K76,'Type II Needs'!K76,'Type III Needs'!K76) -> 1250 | L104: ='Type I Needs'!L76 -> 30 | M104: =L104*K104*J104 -> 112500
C105: IS 200 - ICS for Single Resources and Initial Action Incidents | J105: ='Type I Needs'!I77 -> 3 | K105: =SUM('Type I Needs'!K77,'Type II Needs'!K77,'Type III Needs'!K77) -> 1250 | L105: ='Type I Needs'!L77 -> 30 | M105: =L105*K105*J105 -> 112500
C106: IS 700 - NIMs | J106: ='Type I Needs'!I78 -> 3 | K106: =SUM('Type I Needs'!K78,'Type II Needs'!K78,'Type III Needs'!K78) -> 1250 | L106: ='Type I Needs'!L78 -> 30 | M106: 112500
C109: POD Supplies (Operational Cost) | K109: =SUM(M112:M121) -> 20535000
K111: Quantity | L111: Cost | M111: Initial Cost
C112: =CostsQuants!A49 -> Water (gallons) - 1 gallon per person daily | K112: =SUM('Type I Needs'!K49,'Type II Needs'!K49,'Type III Needs'!K49) -> 1110000 | L112: ='Type I Needs'!L49 -> 0.5 | M112: =L112*K112 -> 555000
C113: =CostsQuants!A50 -> Ice (pounds) - 8 lbs per person daily | K113: =SUM('Type I Needs'!K50,'Type II Needs'!K50,'Type III Needs'!K50) -> 8880000 | L113: ='Type I Needs'!L50 -> 0.5 | M113: =L113*K113 -> 4440000
C114: =CostsQuants!A51 -> Meals-Ready-to-Eat - 2 per person daily | K114: =SUM('Type I Needs'!K51,'Type II Needs'!K51,'Type III Needs'!K51) -> 2220000 | L114: ='Type I Needs'!L51 -> 2 | M114: 4440000
C115: =CostsQuants!A52 -> Tarps (20' x 25') - 1 per household, total | K115: =SUM('Type I Needs'!K52,'Type II Needs'!K52,'Type III Needs'!K52) -> 1110000 | L115: ='Type I Needs'!L52 -> 10 | M115: 11100000
C116: =Custom1 -> Custom Item - daily | K116: =SUM('Type I Needs'!K53,'Type II Needs'!K53,'Type III Needs'!K53) -> 0 | L116: ='Type I Needs'!L53 -> 0 | M116: 0
C117: =Custom2 -> Custom Item - daily | K117: =SUM('Type I Needs'!K54,'Type II Needs'!K54,'Type III Needs'!K54) -> 0 | L117: ='Type I Needs'!L54 -> 0 | M117: 0
C118: =Custom3 -> Custom Item - daily | K118: =SUM('Type I Needs'!K55,'Type II Needs'!K55,'Type III Needs'!K55) -> 0 | L118: ='Type I Needs'!L55 -> 0 | M118: 0
C119: =Custom4 -> Custom Item - daily | K119: =SUM('Type I Needs'!K56,'Type II Needs'!K56,'Type III Needs'!K56) -> 0 | L119: ='Type I Needs'!L56 -> 0 | M119: 0
C120: =Custom5 -> Custom Item - once | K120: =SUM('Type I Needs'!K57,'Type II Needs'!K57,'Type III Needs'!K57) -> 0 | L120: ='Type I Needs'!L57 -> 0 | M120: 0
C121: =Custom6 -> Custom Item - once | K121: =SUM('Type I Needs'!K58,'Type II Needs'!K58,'Type III Needs'!K58) -> 0 | L121: ='Type I Needs'!L58 -> 0 | M121: 0
C122: Personnel (Operational Cost) | K122: =SUM(M125:M129) -> 1726488
J124: Hours Deployed | K124: Quantity | L124: Backfill Rate | M124: Initial Cost
C125: POD Manager | J125: ='Type I Needs'!I65 -> 36 | K125: ='Type I Needs'!K65+'Type II Needs'!K65+'Type III Needs'!K65 -> 4 | L125: ='Type I Needs'!L65 -> 52 | M125: =L125*K125*J125 -> 7488
C126: Support Team Leader | J126: ='Type I Needs'!I66 -> 36 | K126: ='Type I Needs'!K66+'Type II Needs'!K66+'Type III Needs'!K66 -> 73 | L126: ='Type I Needs'!L66 -> 45 | M126: =L126*K126*J126 -> 118260
C127: Fork Lift Operator | J127: ='Type I Needs'!I67 -> 36 | K127: ='Type I Needs'!K67+'Type II Needs'!K67+'Type III Needs'!K67 -> 133 | L127: ='Type I Needs'!L67 -> 45 | M127: 215460
C128: Loading Point Labor | J128: ='Type I Needs'!I68 -> 36 | K128: ='Type I Needs'!K68+'Type II Needs'!K68+'Type III Needs'!K68 -> 973 | L128: ='Type I Needs'!L68 -> 37 | M128: 1296036
C129: Pallet Jacks Labor | J129: ='Type I Needs'!I69 -> 36 | K129: ='Type I Needs'!K69+'Type II Needs'!K69+'Type III Needs'!K69 -> 67 | L129: ='Type I Needs'!L69 -> 37 | M129: 89244

Sheet Annual Costs
B9: Input Summary
C12: Total population to be served with PODs: | G12: =SUM('User Input'!H17:I17) -> 225000
C14: POD Type Distribution:
E15: Type I | G15: =TypeIPODs -> 4
E16: Type II | G16: =TypeIIPODs -> 3
E17: Type III | G17: =TypeIIIPODs -> 52
B26: Annual Costs Summary
J30: Without deployment costs… | R30: Equipment
K31: Annual Equipment Costs: | N31: =SUM(N32:N33) -> 882472.97 | R31: Loading Point Equipment Costs: | S31: POD Kit Costs: | T31: Training Costs:
K32: Loading Point Costs: | N32: =R32 -> 849115.25 | R32: =SUM('Type I Costs'!O61:P61,'Type II Costs'!O61:P61,'Type III Costs'!O61:P61) -> 849115.25 | S32: =SUM('Type I Costs'!O62:P62,'Type II Costs'!O62:P62,'Type III Costs'!O62:P62) -> 33357.72 | T32: =SUM('Type I Costs'!O65:P65,'Type II Costs'!O65:P65,'Type III Costs'!O65:P65) -> 37500
K33: POD Kit Costs: | N33: =S32 -> 33357.72
K34: Annual Training Costs: | N34: =T32 -> 37500
N35: =SUM(N34,N31) -> 919972.97
J51: Including deployment costs…
J52: Annual Equipment Costs: | N52: =SUM(N53:N54) -> 882472.97
K53: Loading Point Costs: | N53: =R55 -> 849115.25
K54: POD Kit Costs: | N54: =S55 -> 33357.72 | R54: Loading Point Equipment Costs: | S54: POD Kit Costs: | T54: POD Supplies Costs: | U54: Personnel Costs: | V54: Training Costs:
J55: Operational POD Supplies Costs: | N55: =T55 -> 20535000 | R55: =SUM('Type I Costs'!O61:P61,'Type II Costs'!O61:P61,'Type III Costs'!O61:P61) -> 849115.25 | S55: =SUM('Type I Costs'!O62:P62,'Type II Costs'!O62:P62,'Type III Costs'!O62:P62) -> 33357.72 | T55: =SUM('Type I Costs'!O63:P63,'Type II Costs'!O63:P63,'Type III Costs'!O63:P63) -> 20535000 | U55: =SUM('Type I Costs'!O64:P64,'Type II Costs'!O64:P64,'Type III Costs'!O64:P64) -> 1726488 | V55: =SUM('Type I Costs'!O65:P65,'Type II Costs'!O65:P65,'Type III Costs'!O65:P65) -> 37500
J56: Operational Personnel Costs: | N56: =U55 -> 1726488
J57: Annual Training Costs: | N57: =V55 -> 37500
N58: =SUM(N57,N56,N55,N52) -> 23181460.97
J61: How many times per year do you expect to deploy PODs? | N61: =Deployed -> 1
J63: This can be changed on the User Input page.

Sheet Gap Costs
B10: Gap Calculation
C13: Suggested Number of PODs by Type | G13: Current PODs by Type | K13: Difference Between Current and Suggested | T13: Effective Gap
D14: Type I | E14: =TypeIPODs -> 4 | H14: Type I | I14: 0 | L14: Type I | M14: =I14-E14 -> -4 | T14: =IF(M14<=0,ABS(M14),0) -> 4
D15: Type II | E15: =TypeIIPODs -> 3 | H15: Type II | I15: 1 | L15: Type II | M15: =I15-E15 -> -2 | T15: =IF(M15<=0,ABS(M15),0) -> 2
D16: Type III | E16: =TypeIIIPODs -> 52 | H16: Type III | I16: 4 | L16: Type III | M16: -48 | T16: 48
R18: Effective Gap | S18: =T14 -> 4 | T18: =T15 -> 2 | U18: =T16 -> 48
B22: Gap Costs
S24: Type I | T24: Type II | U24: Type III
R25: Loading Point | S25: ='Type I Needs'!M26/TypeIPODs -> 116363.5 | T25: ='Type II Needs'!M26/TypeIIPODs -> 71645.25 | U25: ='Type III Needs'!M26/TypeIIIPODs -> 41505.5
J26: Initial Investment Costs | R26: POD Kit | S26: ='Type I Needs'!M44/TypeIPODs -> 8173.6 | T26: ='Type II Needs'!M44/TypeIIPODs -> 4086.8 | U26: ='Type III Needs'!M44/TypeIIIPODs -> 2043.4
J27: Equipment Costs: | M27: =SUM(M28:N29) -> 2739959.7 | R27: Training | S27: ='Type I Needs'!M79/TypeIPODs -> 17820 | T27: ='Type II Needs'!M79/TypeIIPODs -> 9180 | U27: ='Type III Needs'!M79/TypeIIIPODs -> 4590
C28: =IF(AND(N26>=0,N27>=0,N28>=0), "Your suggest capability and current capability are equal, or your current capability is higher than the suggested capability, so you have no gap. Thus there are no associated costs.","") -> Your suggest capability and current capability are equal, or your current capability is higher than the suggested capability, so you have no gap. Thus there are no associated costs. | J28: Loading Point Costs: | M28: =R32 -> 2601008.5
J29: POD Kit Costs: | M29: =S32 -> 138951.2
J30: Training Costs: | M30: =T32 -> 309960 | R30: For chart
M31: =SUM(M30,M27) -> 3049919.7 | R31: Loading Point Equipment Costs: | S31: POD Kit Costs: | T31: Training Costs:
R32: =SUMPRODUCT(S18:U18,S25:U25) -> 2601008.5 | S32: =SUMPRODUCT(S18:U18,S26:U26) -> 138951.2 | T32: =SUMPRODUCT(S18:U18,S27:U27) -> 309960
J44: Annual Costs (Without Deployment)
J45: Equipment Costs: | M45: =SUM(M46:N47) -> 808760.54 | S45: Type I | T45: Type II | U45: Type III
J46: Loading Point Costs: | M46: =R55 -> 778107.5 | R46: Loading Point | S46: ='Type I Costs'!Q99/TypeIPODs -> 35016.5 | T46: ='Type II Costs'!Q99/TypeIIPODs -> 21405.15 | U46: ='Type III Costs'!Q99/TypeIIIPODs -> 12400.65
J47: POD Kit Costs: | M47: =S55 -> 30653.04 | R47: POD Kit | S47: ='Type I Costs'!Q112/TypeIPODs -> 1803.12 | T47: ='Type II Costs'!Q112/TypeIIPODs -> 901.56 | U47: ='Type III Costs'!Q112/TypeIIIPODs -> 450.78
J48: Training Costs: | M48: =T55 -> 34440 | R48: POD Supplies | S48: =SUM('Type I Costs'!O63:P63)/TypeIPODs -> 1110000 | T48: =SUM('Type II Costs'!O63:P63)/TypeIIPODs -> 555000 | U48: =SUM('Type III Costs'!O63:P63)/TypeIIIPODs -> 277500
M49: =SUM(M48,M45) -> 843200.54 | R49: Personnel | S49: =SUM('Type I Costs'!O64:P64)/TypeIPODs -> 90756 | T49: =SUM('Type II Costs'!O64:P64)/TypeIIPODs -> 47016 | U49: =SUM('Type III Costs'!O64:P64)/TypeIIIPODs -> 23508
R50: Training | S50: =SUM('Type I Costs'!J114:Q115)/TypeIPODs -> 1980 | T50: =SUM('Type II Costs'!J114:Q115)/TypeIIPODs -> 1020 | U50: =SUM('Type III Costs'!J114:Q115)/TypeIIIPODs -> 510
R53: for chart
R54: Loading Point Equipment Costs: | S54: POD Kit Costs: | T54: Training Costs:
R55: =SUMPRODUCT(S18:U18,S46:U46) -> 778107.5 | S55: =SUMPRODUCT(S18:U18,S47:U47) -> 30653.04 | T55: =SUMPRODUCT(S18:U18,S50:U50) -> 34440
J64: Annual Costs (Including Deployment)
J65: Equipment Costs: | N65: =SUM(N66:O67) -> 808760.54
J66: Loading Point Costs: | N66: =R70 -> 778107.5
J67: POD Kit Costs: | N67: =S70 -> 30653.04
J68: Operational POD Supplies Costs: | N68: =T70 -> 18870000 | R68: For chart
J69: Operational Personnel Costs: | N69: =U70 -> 1585440 | R69: Loading Point Equipment Costs: | S69: POD Kit Costs: | T69: POD Supplies Costs: | U69: Personnel Costs: | V69: Training Costs:
J70: Training Costs: | N70: =V70 -> 34440 | R70: =SUMPRODUCT(S18:U18,S46:U46) -> 778107.5 | S70: =SUMPRODUCT(S18:U18,S47:U47) -> 30653.04 | T70: =SUMPRODUCT(S18:U18,S48:U48) -> 18870000 | U70: =SUMPRODUCT(S18:U18,S49:U49) -> 1585440 | V70: =SUMPRODUCT(S18:U18,S50:U50) -> 34440
N71: =SUM(N68:O70,N65) -> 21298640.54
J75: How many times per year do you expect to deploy PODs? | N75: =Deployed -> 1
J77: This can be changed on the User Input page.

Sheet HoldShapes (hidden)
G40: Cost 1 | H40: Cost 2 | I40: Cost 3
G41: 4 | H41: 8 | I41: 1
S44: Cost 1 | T44: Cost 2 | U44: Cost 3 | V44: Cost 4 | W44: Cost 5
C45: Gap Calculation | S45: 1 | T45: 2 | U45: 5 | V45: 45 | W45: 30
C48: Suggested WMD/HAZMAT Team Capability
D49: Type I Team | G49: 0
D50: Type II Team | G50: 0
D51: Type III Team | G51: 0
F52: Total: | G52: =SUM(G49:G51) -> 0
C54: Current WMD/HAZMAT Capability
D55: Type I Team | G55: 2
D56: Type II Team | G56: 0
D57: Type III Team | G57: 1
F58: Total: | G58: =SUM(G55:G57) -> 3
C61: Difference Between Current and Suggested
D62: Type I Team | G62: =G55-G49 -> 2
D63: Type II Team | G63: =G56-G50 -> 0
D64: Type III Team | G64: =G57-G51 -> 1
M78: text text text to test

Sheet Lists (hidden)
A1: Percent
A2: Number

Sheet FormatHold (hidden)

Sheet CostsQuants (hidden)
J14: Q Type I | K14: Q Type II | L14: Q Type III | M14: C
A15: Loading Point Equipment
A17: Forklifts | J17: 3 | K17: 2 | L17: 1 | M17: 25000
A18: Pallet Jacks | J18: 3 | K18: 2 | L18: 1 | M18: 365
A19: Power Light Set | J19: 2 | K19: 1 | L19: 1 | M19: 11230
A20: Toilets | J20: 6 | K20: 4 | L20: 2 | M20: 686
A21: Tents | J21: 2 | K21: 2 | L21: 1 | M21: 595
A22: Dumpsters | J22: 4 | K22: 2 | L22: 1 | M22: 752
A23: Traffic cones | J23: 30 | K23: 15 | L23: 10 | M23: 27.15
A24: Two way radio | J24: 4 | K24: 0 | L24: 0 | M24: 250
A25: Pallets | J25: 768 | K25: 384 | L25: 192 | M25: 10
A29: POD Kit
A31: 96-gallon trash can | J31: 4 | K31: 2 | L31: 1 | M31: 90
A32: Work gloves (pairs) | J32: 64 | K32: 32 | L32: 16 | M32: 2
A33: Duct tape | J33: 16 | K33: 8 | L33: 4 | M33: 1
A34: Flashlights | J34: 80 | K34: 40 | L34: 20 | M34: 20
A35: Batteries | J35: 144 | K35: 72 | L35: 36 | M35: 1.25
A36: Reflective safety vests | J36: 80 | K36: 40 | L36: 20 | M36: 30
A37: First Aid kit | J37: 4 | K37: 2 | L37: 1 | M37: 40
A38: Traffic cones | J38: 48 | K38: 24 | L38: 12 | M38: 27.15
A39: Hard hats | J39: 64 | K39: 32 | L39: 16 | M39: 15.35
A40: Glow sticks (orange/red) | J40: 120 | K40: 60 | L40: 30 | M40: 1
A41: Back support vest | J41: 32 | K41: 16 | L41: 8 | M41: 15
A42: Fire extinguisher (5lb) | J42: 4 | K42: 2 | L42: 1 | M42: 61
A43: Signage | J43: 20 | K43: 10 | L43: 5 | M43: 10
A47: POD Supplies
A49: Water (gallons) - 1 gallon per person daily | J49: 20000 | K49: 10000 | L49: 5000 | M49: 0.5
A50: Ice (pounds) - 8 lbs per person daily | J50: =8*20000 -> 160000 | K50: 80000 | L50: 40000 | M50: 0.5
A51: Meals-Ready-to-Eat - 2 per person daily | J51: =2*20000 -> 40000 | K51: 20000 | L51: 10000 | M51: 2
A52: Tarps (20' x 25') - 1 per household, total | J52: 20000 | K52: 10000 | L52: 5000 | M52: 10
A62: Personnel
H64: Hours Deployed | M64: backfill
A65: POD Manager | H65: =12*SUM('User Input'!$I$25:$J$25) -> 36 | J65: 1 | K65: 0 | L65: 0 | M65: 52
A66: Support Team Leader | H66: =12*SUM('User Input'!$I$25:$J$25) -> 36 | J66: 3 | K66: 3 | L66: 1 | M66: 45
A67: Fork Lift Operator | H67: =12*SUM('User Input'!$I$25:$J$25) -> 36 | J67: 5 | K67: 3 | L67: 2 | M67: 45
A68: Loading Point Labor | H68: =12*SUM('User Input'!$I$25:$J$25) -> 36 | J68: 54 | K68: 27 | L68: 13 | M68: 37
A69: Pallet Jacks Labor | H69: =12*SUM('User Input'!$I$25:$J$25) -> 36 | J69: 3 | K69: 1 | L69: 1 | M69: 37
A73: Training
H75: Course Hours | M75: Average Backfill Rate | N75: Initial Cost
A76: IS 100 - Introduction to ICS | H76: 3 | M76: 30
A77: IS 200 - ICS for Single Resources and Initial Action Incidents | H77: 3 | M77: 30
A78: IS 700 - NIMs | H78: 3 | M78: 30
